bitfinex-derivatives/quotes_ETHF0:USTF0_20250205
["timestamp","ask_amount","ask_price","bid_price","bid_amount"]
[1738789731550,3.21138784,2764.5,2764.0,0.00543134]
[1738789732351,3.21138784,2764.5,2764.0,0.78503134]
[1738789733254,3.21138784,2764.5,2764.0,0.00543134]
[1738789737056,3.21138784,2764.5,2764.1,4.79424241]
[1738789737253,3.21138784,2764.5,2764.2,0.743]
[1738789737457,3.21138784,2764.5,2764.2,1.4894]
[1738789739051,0.00358784,2764.5,2764.2,4.6972]
[1738789739257,0.00358784,2764.5,2764.3,4.75035482]
[1738789739453,0.00358784,2764.5,2764.3,5.52485482]
[1738789740361,0.00358784,2764.5,2764.3,0.7745]
[1738789740559,0.00358784,2764.5,2764.2,4.6972]
[1738789740765,0.00358784,2764.5,2764.2,1.4894]
[1738789741455,0.00358784,2764.5,2764.0,0.00543134]
[1738789742048,0.00358784,2764.5,2764.1,4.79787396]
[1738789742749,0.00358784,2764.5,2764.3,3.2078]
[1738789742956,0.00358784,2764.5,2764.4,0.7495]
[1738789743155,4.0043,2765.4,2764.4,6.10646512]
[1738789743460,4.0043,2765.4,2764.7,3.2078]
[1738789744555,3.2078,2764.9,2764.4,4.7192]
[1738789745860,0.763,2765.0,2764.4,4.7192]
[1738789747157,0.763,2765.0,2764.4,3.2078]
[1738789748961,3.2078,2764.9,2764.4,3.2078]
[1738789750358,4.0043,2765.4,2764.5,4.63133926]
[1738789750555,4.0043,2765.4,2764.7,3.2078]
[1738789750859,3.2078,2765.4,2764.7,3.2078]
[1738789751661,3.78636,2765.4,2764.7,3.2078]
[1738789751851,3.2078,2765.4,2764.7,3.2078]
[1738789755260,3.2078,2765.1,2764.2,3.2078]
[1738789755460,3.2078,2765.1,2764.0,0.00543134]
[1738789755461,3.2078,2764.4,2764.0,0.78813134]
[1738789755660,3.2078,2764.4,2764.0,0.00543134]
[1738789755856,3.2078,2764.1,2764.0,0.00543134]
[1738789756156,3.78663,2764.1,2763.0,1.5255]
[1738789756358,10.06470024,2764.2,2763.0,1.5255]
[1738789756560,10.06470024,2764.2,2763.0,6.3281237]
[1738789757258,0.00543134,2763.9,2763.3,3.21323134]
[1738789757661,0.00543134,2763.9,2763.4,5.46106494]
[1738789758659,0.00543134,2763.9,2763.6,3.2078]
[1738789759662,0.00543134,2763.9,2763.7,0.7624]
[1738789761455,0.00543134,2763.9,2763.8,4.69447144]
[1738789762059,3.2078,2764.8,2763.8,9.69447144]
[1738789762264,3.2078,2764.8,2764.2,3.2078]
[1738789762761,1.4879,2765.0,2764.3,5.46476645]
[1738789763070,1.4879,2765.0,2764.3,6.24046645]
[1738789764467,3.2078,2765.3,2764.5,3.2078]
[1738789764976,3.2078,2765.3,2764.6,4.72307087]
[1738789765274,0.001,2765.0,2764.6,4.72307087]
[1738789766672,0.001,2765.0,2764.5,3.2078]
[1738789767473,0.001,2765.0,2764.6,4.65248445]
[1738789767674,0.001,2765.0,2764.6,8.51438469]
[1738789767974,0.001,2765.0,2764.6,4.65248445]
[1738789768868,0.001,2765.0,2764.5,3.2078]
[1738789777185,0.001,2765.0,2764.8,3.2078]
[1738789777388,0.001,2765.0,2764.9,0.7846]
[1738789779493,0.001,2765.0,2764.8,3.2078]
[1738789782584,0.001,2765.0,2764.9,12.28631477]
[1738789782784,0.7753,2765.8,2764.9,4.71729566]
[1738789783084,0.7753,2765.8,2765.1,3.2078]
[1738789783290,0.7753,2765.8,2765.1,3.21323134]
[1738789783491,3.988,2766.1,2765.2,1.4879]
[1738789785189,3.988,2766.1,2765.4,3.2078]
[1738789785594,0.7802,2766.1,2765.4,3.2078]
[1738789785891,3.2078,2766.4,2765.7,3.2078]
[1738789786095,1.5151,2767.0,2766.2,3.08631602]
[1738789786289,3.2078,2766.9,2766.2,3.08631602]
[1738789786595,3.2078,2766.9,2766.3,4.67241229]
[1738789786990,3.2078,2766.9,2766.4,0.7553]
[1738789790397,3.2078,2766.9,2766.3,0.00542143]
[1738789792299,3.2078,2766.6,2766.3,0.00542143]
[1738789792498,0.57832,2766.5,2766.3,0.00542143]
[1738789792899,0.7974,2766.4,2766.3,0.00542143]
[1738789793401,1.37573,2766.4,2766.3,0.00542143]
[1738789793698,0.7974,2766.4,2766.3,0.00542143]
[1738789794393,3.2078,2766.6,2766.3,0.00542143]
[1738789798998,3.78611,2766.6,2766.3,0.00542143]
[1738789799803,3.2078,2766.6,2766.3,0.00542143]
[1738789801005,3.7861,2766.6,2766.3,0.00542143]
[1738789801706,0.57833,2766.4,2766.3,0.00542143]
[1738789802702,3.2078,2766.6,2766.3,0.00542143]
[1738789803109,2.995,2766.8,2766.3,0.00542143]
[1738789803607,3.2078,2766.4,2766.3,0.00542143]
[1738789803807,3.78613,2766.4,2766.3,0.00542143]
[1738789804004,8.2078,2766.4,2765.1,3.49754922]
[1738789804200,3.2078,2766.1,2765.1,3.49754922]
[1738789804399,3.2078,2766.1,2765.4,3.2078]
[1738789805213,0.00538839,2766.0,2765.5,0.00542143]
[1738789805411,0.58380839,2766.0,2765.5,0.00542143]
[1738789805600,0.00538839,2766.0,2765.5,0.00542143]
[1738789805802,0.58380839,2766.0,2765.5,0.00542143]
[1738789806006,3.2078,2765.8,2765.5,0.00542143]
[1738789806210,0.00538839,2766.0,2765.5,0.00542143]
[1738789807209,0.57845,2765.9,2765.5,0.00542143]
[1738789807418,3.78627,2765.8,2765.5,0.00542143]
[1738789807604,3.86320022,2765.6,2765.5,0.00542143]
[1738789810213,4.44170022,2765.6,2765.5,0.00542143]
[1738789810715,3.66492006,2765.6,2765.5,0.00542143]
[1738789810909,3.08642006,2765.6,2765.5,0.00542143]
[1738789811817,3.04941242,2765.6,2765.5,0.00542143]
[1738789812016,3.2078,2765.8,2765.5,0.00542143]
[1738789819227,0.00538839,2766.0,2765.7,3.2078]
[1738789819517,28.88764,2769.3,2765.9,3.08642006]
[1738789819518,3.2078,2766.9,2765.9,3.08642006]
[1738789819720,0.29588112,2767.6,2766.8,3.2078]
[1738789819721,3.2078,2767.6,2766.8,3.2078]
[1738789820117,3.2078,2767.6,2766.8,6.29422006]
[1738789820317,3.2078,2767.6,2767.1,6.29422006]
[1738789820517,3.2078,2767.9,2767.4,3.08642006]
[1738789821119,3.2078,2767.6,2766.9,0.00542143]
[1738789821628,3.2078,2767.1,2766.9,0.00542143]
[1738789822425,3.2078,2767.5,2766.9,0.00542143]
[1738789823121,3.2078,2767.2,2766.9,0.00542143]
[1738789823617,7.06988724,2767.2,2766.9,0.00542143]
[1738789823820,0.5782,2767.1,2766.9,0.00542143]
[1738789824122,7.64805724,2767.2,2766.9,0.00542143]
[1738789824321,7.06988724,2767.2,2766.9,0.00542143]
[1738789825427,7.64805724,2767.2,2766.9,0.00542143]
[1738789825927,7.06988724,2767.2,2766.9,0.00542143]
[1738789826322,0.5782,2767.1,2766.9,0.00542143]
[1738789826525,0.57821,2767.0,2766.9,0.00542143]
[1738789826715,7.06988724,2767.2,2766.9,0.00542143]
[1738789827526,7.64805724,2767.2,2766.9,0.00542143]
[1738789827719,7.06988724,2767.2,2766.9,0.00542143]
[1738789827926,3.2078,2767.2,2766.9,0.00542143]
[1738789828117,0.57821,2767.0,2766.9,0.00542143]
[1738789828919,5.57821,2767.0,2766.9,0.00542143]
[1738789829523,0.57821,2767.0,2766.9,0.00542143]
[1738789830726,0.57837,2766.3,2765.2,3.2078]
[1738789830928,1.44563,2766.9,2765.2,3.2078]
[1738789830929,3.2078,2765.8,2765.2,3.2078]
[1738789831130,3.2078,2766.2,2765.2,3.2078]
[1738789831831,3.2078,2766.2,2765.4,0.00542143]
[1738789831832,0.00542143,2766.0,2765.4,0.00542143]
[1738789834525,0.00542143,2766.0,2765.5,3.2078]
[1738789834729,0.00542143,2766.0,2765.5,7.97801797]
[1738789835231,0.00542143,2766.0,2765.5,3.2078]
[1738789835834,0.00542143,2766.0,2765.4,0.00542143]
[1738789836230,3.2078,2765.9,2765.4,0.00542143]
[1738789837135,0.00542143,2766.0,2765.4,0.00542143]
[1738789839339,3.2078,2765.9,2765.4,0.75502143]
[1738789839540,0.57849,2765.7,2765.4,0.75502143]
[1738789840441,5.35448724,2765.8,2765.4,0.75502143]
[1738789840643,3.2078,2765.5,2765.4,0.75502143]
[1738789841545,3.78632,2765.5,2765.4,0.00542143]
[1738789841737,3.2078,2765.5,2765.4,0.00542143]
[1738789843945,3.78632,2765.5,2765.4,0.00542143]
[1738789844446,6.87165888,2765.5,2765.4,0.00542143]
[1738789844751,6.29313888,2765.5,2765.4,0.00542143]
[1738789844943,6.87165888,2765.5,2765.4,0.00542143]
[1738789848448,6.29313888,2765.5,2765.4,0.00542143]
[1738789848650,3.2078,2765.5,2765.4,0.00542143]
[1738789851146,6.29313888,2765.5,2765.4,0.00542143]
[1738789851347,6.87165888,2765.5,2765.4,0.00542143]
[1738789852255,11.87165888,2765.5,2765.4,0.00542143]
[1738789852449,1.44646,2765.3,2764.7,1.4959]
[1738789852750,6.87179888,2764.9,2764.4,2.2894]
[1738789852947,0.7863,2764.8,2764.4,2.2894]
[1738789853455,3.2078,2764.9,2764.4,2.2894]
[1738789853842,0.57871,2764.7,2764.4,2.2894]
[1738789854246,0.7918,2764.6,2764.4,2.2894]
[1738789854446,6.29313888,2764.9,2764.4,2.2894]
[1738789854648,0.7918,2764.8,2764.4,2.2894]
[1738789856452,3.2078,2764.5,2764.3,0.00542143]
[1738789857855,1.5275,2764.4,2763.3,3.2078]
[1738789858149,1.5275,2764.4,2763.7,0.7353]
[1738789858150,3.2078,2764.1,2763.7,0.7353]
[1738789858354,3.2078,2763.8,2763.7,0.7353]
[1738789858549,3.2078,2763.8,2763.4,1.4678]
[1738789858853,3.9667,2763.8,2763.4,2.2031]
[1738789859350,3.2078,2763.8,2763.4,2.2031]
[1738789864156,0.00542143,2763.9,2763.4,5.28843888]
[1738789864350,0.00542143,2763.9,2763.6,3.2078]
[1738789864745,0.00542143,2763.9,2763.7,4.6188092]
[1738789865452,3.2078,2765.0,2764.1,0.57881]
[1738789865653,3.2078,2765.0,2764.5,3.08533888]
[1738789865957,3.2078,2765.0,2764.2,12.62204233]
[1738789866258,3.2078,2765.0,2764.2,7.83203888]
[1738789866457,3.2078,2765.0,2764.3,4.63498435]
[1738789866759,0.00542143,2764.9,2764.3,4.63498435]
[1738789868553,0.00542143,2764.9,2764.4,0.7892]
[1738789870349,3.7865,2764.7,2764.2,1.5389]
[1738789870556,3.2078,2764.4,2763.4,0.8003]
[1738789870749,3.2078,2764.1,2763.4,0.8003]
[1738789870957,3.2078,2763.8,2763.4,0.8003]
[1738789871150,3.2078,2763.8,2763.3,1.46142143]
[1738789871352,3.2078,2763.4,2763.3,1.46142143]
[1738789871554,6.29313888,2763.4,2762.6,3.2078]
[1738789871761,6.29313888,2763.1,2762.6,3.2078]
[1738789871954,6.29313888,2763.1,2762.5,0.7357]
[1738789872159,3.2078,2762.7,2762.5,0.7357]
[1738789872464,3.2078,2762.7,2762.0,3.2078]
[1738789872661,3.2078,2762.7,2762.1,0.7357]
[1738789872861,3.2078,2762.7,2762.3,0.00542143]
[1738789874363,0.00542143,2762.9,2762.3,0.00542143]
[1738789874664,0.00542143,2762.9,2762.3,3.21322143]
[1738789874958,3.2078,2762.7,2762.3,0.00542143]
[1738789875162,7.08236765,2762.7,2762.3,0.00542143]
[1738789875359,3.2078,2762.7,2762.3,0.00542143]
[1738789876461,3.2078,2762.4,2762.3,0.00542143]
[1738789878264,6.20822143,2762.9,2762.3,0.00542143]
[1738789878653,6.20822143,2762.9,2762.3,3.21322143]
[1738789878654,3.21322143,2762.9,2762.3,3.21322143]
[1738789878859,3.21322143,2762.9,2762.4,0.7802]
[1738789879056,3.21322143,2762.9,2762.4,1.5743]
[1738789879668,3.21322143,2762.9,2762.5,4.78937082]
[1738789880161,0.00542143,2762.9,2762.6,3.2078]
[1738789880569,0.00542143,2762.9,2762.7,4.73799641]
[1738789880965,3.2078,2763.4,2762.8,4.67026765]
[1738789881271,4.60926765,2764.2,2763.2,3.2078]
[1738789881272,0.7347,2764.2,2763.2,3.2078]
[1738789881461,3.2078,2764.4,2763.5,3.2078]
[1738789881660,3.2078,2764.1,2763.5,3.2078]
[1738789881863,3.2078,2764.4,2763.5,3.2078]
[1738789882068,1.444,2764.5,2763.5,3.2078]
[1738789882280,0.00542143,2764.2,2763.7,0.00542143]
[1738789883593,0.00542143,2764.2,2763.8,3.2078]
[1738789883779,0.00542143,2764.2,2763.8,7.81661472]
[1738789884280,0.00542143,2764.2,2763.8,3.2078]
[1738789884880,0.00542143,2764.2,2763.7,0.00542143]
[1738789884881,3.2078,2764.1,2763.7,0.00542143]
[1738789885185,0.7213,2764.0,2763.7,0.00542143]
[1738789885975,0.00542143,2764.2,2763.7,3.87998908]
[1738789886176,0.00542143,2764.2,2763.9,3.2078]
[1738789886483,0.00542143,2764.2,2763.7,0.00542143]
[1738789886782,0.00542143,2764.2,2763.8,4.77785176]
[1738789887684,0.00542143,2764.2,2763.8,7.98565176]
[1738789889380,0.00542143,2764.2,2763.8,3.2078]
[1738789890481,0.00542143,2764.2,2763.7,0.00542143]
[1738789890883,0.00542143,2764.2,2763.8,3.2078]
[1738789891083,0.00542143,2764.2,2763.8,7.97298015]
[1738789891985,0.00542143,2764.2,2763.8,3.2078]
[1738789892997,0.00542143,2764.2,2764.1,3.2078]
[1738789893182,0.7295,2765.0,2764.1,3.2078]
[1738789893383,3.2078,2765.1,2764.4,3.2078]
[1738789893579,3.2078,2765.1,2764.5,0.7426]
[1738789893985,3.2078,2765.1,2764.4,3.2078]
[1738789894188,3.2078,2764.8,2764.1,4.7013]
[1738789894489,0.7311,2764.7,2764.1,3.2078]
[1738789894899,0.7542,2764.6,2764.1,3.2078]
[1738789896282,0.7542,2764.6,2763.7,3.95462143]
[1738789896283,3.2078,2764.4,2763.7,3.95462143]
[1738789896489,3.2078,2764.4,2763.7,0.74682143]
[1738789898886,0.7542,2764.6,2763.7,0.74682143]
[1738789899192,3.962,2764.6,2763.7,0.74682143]
[1738789899388,3.2078,2764.3,2763.7,0.74682143]
[1738789900183,3.2078,2764.3,2763.7,4.62138908]
[1738789900387,0.7542,2764.6,2763.9,3.2078]
[1738789900588,0.7542,2764.6,2764.0,0.743]
[1738789900791,3.2078,2765.1,2764.2,3.2078]
[1738789901191,3.2078,2765.1,2764.3,0.765]
[1738789901391,3.2078,2765.1,2764.3,5.39949042]
[1738789901695,3.2078,2765.1,2764.5,3.2078]
[1738789901892,3.2078,2765.1,2764.6,0.743]
[1738789902499,3.2078,2765.1,2764.5,3.2078]
[1738789907192,5.36956765,2765.4,2764.5,3.2078]
[1738789907397,5.36956765,2765.4,2764.6,4.65686614]
[1738789907398,4.7028,2765.4,2764.6,4.65686614]
[1738789907804,4.7028,2765.4,2764.7,0.795]
[1738789908303,4.7028,2765.4,2764.8,0.7319]
[1738789908503,4.7028,2765.4,2764.9,0.7539]
[1738789909204,4.7028,2765.4,2764.5,3.2078]
[1738789909205,3.2078,2765.1,2764.5,3.2078]
[1738789913104,3.2078,2765.1,2764.5,3.9424]
[1738789913701,3.2078,2765.1,2763.6,1.442]
[1738789913702,3.2078,2764.8,2763.7,6.29974012]
[1738789913903,3.2078,2764.4,2763.7,0.80332143]
[1738789914102,7.05631869,2764.3,2763.7,0.80332143]
[1738789914311,6.29431869,2764.0,2763.7,0.00542143]
[1738789914696,0.7472,2763.9,2763.7,0.00542143]
[1738789916806,6.2028,2764.4,2763.7,0.00542143]
[1738789917004,6.2028,2764.4,2763.7,3.21322143]
[1738789917210,6.2028,2764.4,2763.8,0.7831]
[1738789917905,3.21322143,2765.0,2764.1,3.2078]
[1738789918112,3.08651869,2764.9,2764.2,1.4568]
[1738789918313,3.08651869,2764.9,2764.2,6.08745574]
[1738789918702,3.21322143,2765.0,2764.2,6.08745574]
[1738789920105,3.2078,2764.7,2764.2,1.4568]
[1738789920410,3.2078,2764.4,2763.8,4.7142]
[1738789920607,3.2078,2764.4,2763.9,0.7285]
[1738789922412,0.7974,2764.7,2763.9,0.7285]
[1738789922611,3.2078,2764.8,2764.1,3.2078]
[1738789926111,0.00542143,2765.0,2764.1,3.2078]
[1738789926316,0.00542143,2765.0,2764.2,4.59598233]
[1738789926813,0.00542143,2765.0,2764.3,0.7487]
[1738789927014,0.00542143,2765.0,2764.4,0.7477]
[1738789927314,0.00542143,2765.0,2764.5,0.7544]
[1738789930010,0.00542143,2765.0,2764.6,4.7886174]
[1738789930212,0.00542143,2765.0,2764.7,3.2078]
[1738789930613,0.00542143,2765.0,2764.8,5.38392337]
[1738789932717,0.00542143,2765.0,2764.7,3.2078]
[1738789933015,0.73532143,2765.0,2764.7,3.2078]
[1738789933222,0.00542143,2765.0,2764.7,3.2078]
[1738789938027,0.00542143,2765.0,2764.8,4.74406164]
[1738789939327,0.00542143,2765.0,2764.7,3.2078]
[1738789939822,0.00542143,2765.0,2764.8,4.61366053]
[1738789944723,0.00542143,2765.0,2764.9,3.08572503]
[1738789945125,0.00542143,2765.0,2764.9,7.84202927]
[1738789950234,0.7299,2765.7,2764.9,7.84202927]
[1738789950436,0.7299,2765.7,2765.1,3.2078]
[1738789950634,0.7299,2765.7,2765.2,0.757]
[1738789951431,0.7299,2765.7,2765.2,0.76242143]
[1738789952333,3.2078,2765.4,2765.2,0.00542143]
[1738789952535,3.2078,2765.4,2763.9,0.3624]
[1738789952536,4.38978503,2765.3,2764.5,5.4429]
[1738789952837,3.81122503,2765.3,2764.5,5.4429]
[1738789953740,0.00542143,2765.2,2764.6,0.00542143]
[1738789954638,3.2078,2765.1,2764.6,0.00542143]
[1738789954833,0.7375,2765.0,2764.6,0.00542143]
[1738789955637,4.40186503,2765.0,2764.6,0.00542143]
[1738789955837,0.7583,2764.9,2764.6,0.00542143]
[1738789956333,0.7364,2764.8,2764.6,0.00542143]
[1738789956936,3.08572503,2764.7,2764.6,0.00542143]
[1738789957129,6.29352503,2764.7,2763.4,3.2078]
[1738789957336,3.2078,2764.1,2763.3,0.7706]
[1738789957536,0.7687,2764.0,2763.3,4.73652533]
[1738789957836,1.527,2764.0,2763.2,3.2078]
[1738789958240,1.527,2764.0,2763.3,0.00542143]
[1738789960239,0.7623,2763.9,2763.3,0.00542143]
[1738789960639,0.7623,2763.9,2763.4,4.62458222]
[1738789960933,0.7623,2763.9,2763.5,3.2078]
[1738789961139,0.7623,2763.9,2763.5,3.9321]
[1738789961341,0.7623,2763.9,2763.6,4.62458222]
[1738789962937,0.7623,2763.9,2763.5,3.9321]
[1738789964046,3.2078,2764.4,2763.8,3.2078]
[1738789964341,3.2078,2764.4,2763.9,6.28427521]
[1738789964740,1.5146,2764.7,2764.0,0.7903]
[1738789965045,1.5146,2764.7,2764.1,4.79718702]
[1738789966040,1.5146,2764.7,2764.1,8.00498702]
[1738789966238,6.29352503,2765.1,2764.1,8.00498702]
[1738789966239,3.2078,2765.1,2764.5,3.2078]
[1738789966446,0.7811,2765.0,2764.5,3.2078]
[1738789966635,0.7811,2765.0,2764.6,0.7932]
[1738789967641,0.7811,2765.0,2764.8,3.2078]
[1738789975847,0.7811,2765.0,2764.6,1.5893]
[1738789976053,0.7811,2765.0,2764.4,3.2078]
[1738789976242,0.7811,2765.0,2764.5,0.7965]
[1738789979155,3.2078,2764.8,2764.4,3.2078]
[1738789979652,3.2078,2764.8,2764.1,3.2078]
[1738789979653,0.57871,2764.6,2764.1,3.2078]
[1738789980058,0.7956,2764.5,2764.1,3.2078]
[1738789980258,0.7831,2764.4,2764.1,3.2078]
[1738789980657,0.7956,2764.5,2764.1,3.2078]
[1738789980955,3.7011,2764.7,2764.1,3.9932]
[1738789981253,3.7011,2764.7,2764.2,0.7924]
[1738789981452,6.78682503,2764.7,2764.1,3.9932]
[1738789981653,7.56972503,2764.7,2764.1,3.9932]
[1738789982155,3.08572503,2764.4,2764.1,3.2078]
[1738789982459,0.731,2764.3,2764.1,3.2078]
[1738789983653,3.86882503,2764.7,2764.1,3.2078]
[1738789983852,4.59982503,2764.7,2764.2,0.783]
[1738789984055,4.59982503,2764.7,2764.2,1.5199]
[1738789984257,4.59982503,2764.7,2764.2,2.3]
[1738789985860,4.59982503,2764.7,2764.2,1.5631]
[1738789986457,0.7954,2764.6,2764.1,3.2078]
[1738789987262,1.37412,2764.6,2764.1,3.2078]
[1738789987461,3.2078,2764.5,2763.8,3.2078]
[1738789987759,3.78655,2764.5,2763.8,3.2078]
[1738789987960,3.2078,2764.5,2763.8,3.2078]
[1738789988953,3.2078,2764.5,2763.8,6.29352503]
[1738789992967,3.2078,2764.6,2763.9,3.2078]
[1738789993770,0.57876,2764.4,2763.9,3.2078]
[1738789993970,3.66448503,2764.4,2763.9,3.2078]
[1738789994366,3.08572503,2764.4,2763.9,3.2078]
[1738789994568,0.5788,2764.2,2763.9,3.2078]
[1738789994866,0.7256,2764.1,2763.9,3.2078]
[1738789995060,3.2078,2764.3,2763.3,3.21322143]
[1738789995261,4.7639,2764.3,2763.6,3.2078]
[1738789995461,4.7639,2764.3,2763.7,2.2744]
[1738789996269,4.7639,2764.3,2763.8,3.08572503]
[1738789996270,3.2078,2764.3,2763.8,3.08572503]
[1738789996476,3.2078,2764.6,2763.9,3.2078]
[1738789996972,3.2078,2764.6,2764.0,4.74048762]
[1738789998574,0.7491,2764.9,2764.5,3.2078]
[1738789998775,0.7491,2764.9,2764.6,2.3483]
[1738790000772,0.00542143,2765.2,2764.6,2.3483]
[1738790000973,0.00542143,2765.2,2765.1,3.2078]
[1738790001279,3.2078,2766.2,2765.1,3.2078]
[1738790001473,3.2078,2766.2,2765.6,3.2078]
[1738790001771,3.2078,2766.2,2765.7,0.7483]
[1738790001977,6.29352503,2766.2,2765.7,0.7483]
[1738790002174,6.29352503,2766.2,2765.2,3.9831]
[1738790002370,3.21322143,2766.2,2765.7,0.00542143]
[1738790002570,0.00542143,2766.2,2765.8,3.2078]
[1738790002774,0.00542143,2766.2,2765.9,0.7904]
[1738790002975,0.00542143,2766.2,2766.0,0.7483]
[1738790003177,0.00542143,2766.2,2766.1,3.2078]
[1738790004377,0.00542143,2766.2,2766.1,3.9763]
[1738790006476,0.00542143,2766.2,2766.0,0.7483]
[1738790009174,0.00542143,2766.2,2766.1,3.2078]
[1738790012081,0.00542143,2766.2,2765.7,0.00542143]
[1738790012287,3.78625,2765.9,2765.7,0.00542143]
[1738790012486,0.7824,2765.8,2765.7,0.00542143]
[1738790012880,1.5491,2765.8,2765.7,0.00542143]
[1738790013085,0.7824,2765.8,2765.7,0.00542143]
[1738790013387,3.97992143,2766.2,2765.7,0.00542143]
[1738790013591,4.77292143,2766.2,2765.7,0.00542143]
[1738790014075,1.56512143,2766.2,2765.7,0.00542143]
[1738790014275,0.00542143,2766.2,2765.8,7.918668]
[1738790014490,0.00542143,2766.2,2765.9,3.2078]
[1738790015179,0.58381143,2766.2,2765.7,0.00542143]
[1738790015375,1.3714,2766.1,2765.7,0.00542143]
[1738790015580,3.2078,2765.9,2765.7,0.00542143]
[1738790020385,0.57846,2765.8,2765.7,0.00542143]
[1738790020590,6.29352503,2765.9,2765.7,0.00542143]
[1738790020791,0.57846,2765.8,2765.7,0.00542143]
[1738790023090,5.57846,2765.8,2765.7,0.00542143]
[1738790023287,0.57854,2765.5,2764.9,3.2078]
[1738790023593,6.29352503,2765.3,2764.6,0.7567]
[1738790023779,3.2078,2765.0,2764.6,0.7567]
[1738790024089,6.29352503,2764.7,2763.8,4.79497448]
[1738790024289,3.08572503,2764.1,2763.5,3.2078]
[1738790024483,3.08572503,2764.1,2764.0,0.00542143]
[1738790025082,8.66454503,2764.1,2764.0,0.00542143]
[1738790025282,8.66454503,2764.1,2763.1,3.2078]
[1738790025283,10.913,2764.1,2763.1,3.2078]
[1738790025486,10.913,2764.1,2762.8,1.4822]
[1738790025487,3.2078,2763.2,2762.5,3.2078]
[1738790025793,3.08572503,2763.1,2762.5,3.2078]
[1738790025987,3.08572503,2763.1,2762.1,3.9645]
[1738790026191,3.08572503,2763.1,2762.1,4.25294349]
[1738790026192,3.2078,2762.9,2762.1,4.25294349]
[1738790026494,3.21322143,2762.9,2762.3,0.00542143]
[1738790028993,3.21322143,2762.9,2762.4,7.9211072]
[1738790035490,3.21322143,2762.9,2762.3,0.00542143]
[1738790035890,3.21322143,2762.9,2762.4,3.2078]
[1738790036099,3.21322143,2762.9,2762.4,7.9591761]
[1738790036393,0.00542143,2762.9,2762.7,3.2078]
[1738790036693,0.755,2764.1,2762.8,1.4828]
[1738790036906,0.755,2764.1,2763.3,3.2078]
[1738790037091,0.755,2764.1,2763.4,0.7388]
[1738790037398,3.9628,2764.1,2763.4,5.44657978]
[1738790037800,0.00542143,2764.0,2763.4,5.44657978]
[1738790038495,6.29894646,2764.0,2762.9,3.08572503]
[1738790038691,6.29894646,2764.0,2762.9,3.82452503]
[1738790038892,6.29894646,2764.0,2763.1,3.2078]
[1738790039187,3.21322143,2764.0,2763.1,3.2078]
[1738790039498,3.21322143,2764.0,2763.2,4.68734096]
[1738790040698,3.2078,2763.9,2763.2,4.68734096]
[1738790041393,3.2078,2763.9,2763.2,8.52166599]
[1738790042094,3.2078,2763.9,2763.2,0.7486]
[1738790042298,0.7533,2763.8,2763.2,0.7486]
[1738790042496,3.2078,2763.4,2762.9,0.7388]
[1738790042695,3.2078,2763.4,2762.8,0.744]
[1738790043509,3.2078,2763.4,2762.9,4.78091419]
[1738790044600,4.7307,2763.8,2762.9,7.86663922]
[1738790044800,4.7307,2763.8,2762.9,11.07443922]
[1738790046104,4.7307,2763.8,2762.9,3.2078]
[1738790046304,3.78676,2763.5,2762.9,3.2078]
[1738790046604,3.78676,2763.5,2762.6,0.7558]
[1738790046605,3.2078,2763.0,2762.6,0.7558]
[1738790046798,3.2078,2763.0,2762.3,0.00542143]
[1738790047006,4.57756,2763.0,2762.3,0.80052143]
[1738790047205,0.7334,2762.9,2762.3,0.80052143]
[1738790048808,3.2078,2762.7,2762.3,0.80052143]
[1738790051504,3.2078,2762.7,2762.3,0.00542143]
[1738790054901,3.2078,2763.0,2762.6,3.08572503]
[1738790055104,2.995,2763.9,2762.7,3.9286]
[1738790055105,3.2078,2763.3,2762.7,3.9286]
[1738790055302,1.4496,2763.6,2763.0,3.2078]
[1738790056410,1.4496,2763.6,2763.1,4.60749722]
[1738790056611,1.4496,2763.6,2763.0,3.2078]
[1738790059315,3.2078,2763.8,2763.3,3.2078]
[1738790059911,0.7784,2763.7,2763.3,3.2078]
[1738790061413,3.2078,2763.5,2762.9,3.2078]
[1738790061815,3.66470503,2763.4,2762.9,3.2078]
[1738790062518,3.66470503,2763.4,2762.4,1.5307]
[1738790062519,3.08572503,2763.4,2762.4,1.5307]
[1738790062709,3.08572503,2763.4,2762.6,3.2078]
[1738790065315,3.2078,2763.2,2762.6,3.2078]
[1738790065713,0.7546,2763.1,2762.6,3.2078]
[1738790066817,3.08572503,2763.4,2762.6,3.2078]
[1738790067014,3.9515,2763.5,2762.6,6.29352503]
[1738790068219,3.2078,2763.5,2762.9,3.2078]
[1738790068420,3.2078,2763.5,2763.0,1.5185]
[1738790068620,3.2078,2763.5,2763.0,0.7891]
[1738790068920,3.2078,2763.5,2762.9,3.2078]
[1738790069120,3.2078,2763.5,2762.7,0.7904]
[1738790069815,3.78675,2763.5,2762.7,0.7904]
[1738790070113,3.78674,2763.5,2762.7,0.7904]
[1738790070417,3.2078,2763.5,2762.7,0.7904]
[1738790073522,3.2078,2763.1,2762.7,0.7904]
[1738790073830,3.2078,2763.1,2762.5,3.9372]
[1738790074122,3.2078,2762.6,2762.3,0.00542143]
[1738790074326,0.57907,2762.9,2762.3,0.00542143]
[1738790074327,3.08572503,2762.8,2762.3,0.00542143]
[1738790074827,3.2078,2762.9,2762.3,0.00542143]
[1738790075024,3.78687,2762.9,2762.3,0.00542143]
[1738790075421,3.2078,2762.9,2762.3,0.00542143]
[1738790076726,6.2028,2763.3,2762.5,3.2078]
[1738790077020,3.2078,2763.3,2762.6,1.5502]
[1738790077924,3.2078,2763.3,2762.6,4.63592503]
[1738790078126,0.7196,2763.4,2762.9,3.2078]
[1738790078326,0.7196,2763.4,2762.6,7.84372503]
[1738790078626,3.9487,2763.6,2762.9,3.2078]
[1738790078826,3.9487,2763.6,2763.0,0.7416]
[1738790079025,3.2078,2763.6,2763.0,0.7416]
[1738790079224,3.9841,2763.9,2763.3,3.2078]
[1738790079421,3.2078,2763.9,2763.4,0.7603]
[1738790079624,3.2078,2763.9,2763.4,1.4951]
[1738790081531,3.9654,2763.9,2763.0,3.9494]
[1738790081926,3.9654,2763.9,2763.1,0.7255]